[Event "Titled Tuesday Blitz December 06 Late 2022"]
[White "Ambartsumova, Karina"]
[Black "Kaplan, Avi Harrison"]
[WhiteFideId "4166299"]
[BlackFideId "30934559"]
[WhiteElo "2319"]
[BlackElo "1983"]
[Result "1-0"]
[Round "10"]
[TimeControl "180+1"]
[Date "2022.12.07"]
[WhiteClock "0:00:09"]
[BlackClock "0:00:13"]

1. Nf3 {[%clk 0:03:00]}  c5 {[%clk 0:02:57]} 2. c4 {[%clk 0:03:00]}  Nc6 {[%clk 0:02:57]} 3. Nc3 {[%clk 0:02:58]}  e5 {[%clk 0:02:58]} 4. g3 {[%clk 0:02:58]}  f5 {[%clk 0:02:58]} 5. d3 {[%clk 0:02:57]}  d6 {[%clk 0:02:57]} 6. Bg2 {[%clk 0:02:57]}  h6 {[%clk 0:02:58]} 7. O-O {[%clk 0:02:57]}  Nf6 {[%clk 0:02:59]} 8. a3 {[%clk 0:02:56]}  Be7 {[%clk 0:02:59]} 9. Rb1 {[%clk 0:02:56]}  O-O {[%clk 0:02:57]} 10. b4 {[%clk 0:02:57]}  Qc7 {[%clk 0:02:58]} 11. Ne1 {[%clk 0:02:43]}  Be6 {[%clk 0:02:54]} 12. Nc2 {[%clk 0:02:41]}  f4 {[%clk 0:02:46]} 13. gxf4 {[%clk 0:02:34]}  exf4 {[%clk 0:02:45]} 14. Bxf4 {[%clk 0:02:32]}  Ne4 {[%clk 0:02:30]} 15. Nb5 {[%clk 0:01:48]}  Qd7 {[%clk 0:02:24]} 16. Bg3 {[%clk 0:01:48]}  Nxg3 {[%clk 0:02:20]} 17. hxg3 {[%clk 0:01:41]}  d5 {[%clk 0:02:19]} 18. cxd5 {[%clk 0:01:21]}  Bxd5 {[%clk 0:02:19]} 19. Bxd5+ {[%clk 0:01:18]}  Qxd5 {[%clk 0:02:20]} 20. Nc7 {[%clk 0:01:19]}  Qg5 {[%clk 0:02:12]} 21. Nxa8 {[%clk 0:01:04]}  Rxa8 {[%clk 0:02:13]} 22. Qc1 {[%clk 0:01:01]}  Qg4 {[%clk 0:02:01]} 23. Qe3 {[%clk 0:00:39]}  Rf8 {[%clk 0:01:51]} 24. b5 {[%clk 0:00:31]}  Bg5 {[%clk 0:01:33]} 25. Qxc5 {[%clk 0:00:20]}  Na5 {[%clk 0:01:11]} 26. Qd5+ {[%clk 0:00:20]}  Kh8 {[%clk 0:01:10]} 27. Qe4 {[%clk 0:00:20]}  Rf4 {[%clk 0:01:08]} 28. Qe8+ {[%clk 0:00:19]}  Kh7 {[%clk 0:01:09]} 29. Ne3 {[%clk 0:00:18]}  Rf8 {[%clk 0:00:49]} 30. Qxf8 {[%clk 0:00:16]}  Bxe3 {[%clk 0:00:49]} 31. Qf3 {[%clk 0:00:16]}  Qxf3 {[%clk 0:00:36]} 32. exf3 {[%clk 0:00:17]}  Bb6 {[%clk 0:00:37]} 33. Rfe1 {[%clk 0:00:17]}  Kg6 {[%clk 0:00:37]} 34. Re7 {[%clk 0:00:16]}  Kf6 {[%clk 0:00:38]} 35. Re8 {[%clk 0:00:17]}  Kf7 {[%clk 0:00:38]} 36. Re4 {[%clk 0:00:16]}  Kf6 {[%clk 0:00:38]} 37. Kf1 {[%clk 0:00:16]}  Bc5 {[%clk 0:00:37]} 38. a4 {[%clk 0:00:16]}  b6 {[%clk 0:00:34]} 39. d4 {[%clk 0:00:16]}  Bf8 {[%clk 0:00:31]} 40. Rc1 {[%clk 0:00:16]}  Nb7 {[%clk 0:00:30]} 41. Rc7 {[%clk 0:00:15]}  Nd6 {[%clk 0:00:30]} 42. Rf4+ {[%clk 0:00:15]}  Kg6 {[%clk 0:00:30]} 43. Rxf8 {[%clk 0:00:15]}  h5 {[%clk 0:00:30]} 44. Rxa7 {[%clk 0:00:15]}  h4 {[%clk 0:00:30]} 45. gxh4 {[%clk 0:00:15]}  Kh7 {[%clk 0:00:29]} 46. Rd8 {[%clk 0:00:14]}  Nc4 {[%clk 0:00:28]} 47. Rdd7 {[%clk 0:00:14]}  Kh8 {[%clk 0:00:26]} 48. d5 {[%clk 0:00:10]}  Ne5 {[%clk 0:00:24]} 49. Rxg7 {[%clk 0:00:09]}  Nxf3 {[%clk 0:00:13]} 50. Rgb7 {[%clk 0:00:08]}  Nh2+ {[%clk 0:00:12]} 51. Kg2 {[%clk 0:00:08]}  Ng4 {[%clk 0:00:13]} 52. Ra8# {[%clk 0:00:09]} 1-0


[Site "https://www.chess.com"]

[Event "Titled Tuesday Blitz December 06 Late 2022"]
[White "Andreikin, Dmitry"]
[Black "Paravyan, David"]
[WhiteFideId "4158814"]
[BlackFideId "4194985"]
[WhiteElo "2735"]
[BlackElo "2551"]
[Result "1-0"]
[Round "10"]
[TimeControl "180+1"]
[Date "2022.12.06"]
[WhiteClock "0:00:05"]
[BlackClock "0:00:01"]

1. Nf3 {[%clk 0:03:00]}  Nf6 {[%clk 0:02:59]} 2. c4 {[%clk 0:03:00]}  g6 {[%clk 0:02:59]} 3. b4 {[%clk 0:03:00]}  e6 {[%clk 0:02:51]} 4. a3 {[%clk 0:02:57]}  d5 {[%clk 0:02:51]} 5. e3 {[%clk 0:02:54]}  Bg7 {[%clk 0:02:49]} 6. Bb2 {[%clk 0:02:54]}  O-O {[%clk 0:02:48]} 7. d4 {[%clk 0:02:51]}  a5 {[%clk 0:02:44]} 8. b5 {[%clk 0:02:48]}  a4 {[%clk 0:02:19]} 9. Be2 {[%clk 0:02:39]}  c6 {[%clk 0:02:18]} 10. Nc3 {[%clk 0:02:31]}  dxc4 {[%clk 0:01:59]} 11. Bxc4 {[%clk 0:02:28]}  cxb5 {[%clk 0:01:45]} 12. Bxb5 {[%clk 0:02:27]}  Bd7 {[%clk 0:01:42]} 13. Be2 {[%clk 0:02:09]}  Nc6 {[%clk 0:01:30]} 14. O-O {[%clk 0:02:08]}  Na5 {[%clk 0:01:25]} 15. Rb1 {[%clk 0:02:03]}  Qc7 {[%clk 0:01:09]} 16. Ne5 {[%clk 0:01:54]}  Rfc8 {[%clk 0:01:02]} 17. Nxd7 {[%clk 0:01:50]}  Nxd7 {[%clk 0:00:57]} 18. Nxa4 {[%clk 0:01:43]}  Nc4 {[%clk 0:00:53]} 19. Bc1 {[%clk 0:01:38]}  Qc6 {[%clk 0:00:38]} 20. Rb4 {[%clk 0:00:55]}  b5 {[%clk 0:00:29]} 21. Bf3 {[%clk 0:00:54]}  Qc7 {[%clk 0:00:08]} 22. Bxa8 {[%clk 0:00:54]}  Rxa8 {[%clk 0:00:08]} 23. Nc3 {[%clk 0:00:53]}  Nxe3 {[%clk 0:00:03]} 24. Nxb5 {[%clk 0:00:47]}  Nxd1 {[%clk 0:00:03]} 25. Nxc7 {[%clk 0:00:46]}  Rc8 {[%clk 0:00:03]} 26. Rxd1 {[%clk 0:00:43]}  Rxc7 {[%clk 0:00:03]} 27. Bf4 {[%clk 0:00:43]}  Ra7 {[%clk 0:00:02]} 28. d5 {[%clk 0:00:27]}  exd5 {[%clk 0:00:02]} 29. Rxd5 {[%clk 0:00:23]}  Rxa3 {[%clk 0:00:02]} 30. g3 {[%clk 0:00:24]}  Ra7 {[%clk 0:00:02]} 31. Be3 {[%clk 0:00:20]}  Rc7 {[%clk 0:00:03]} 32. Bf4 {[%clk 0:00:20]}  Ra7 {[%clk 0:00:03]} 33. Rc4 {[%clk 0:00:13]}  h5 {[%clk 0:00:03]} 34. Rc7 {[%clk 0:00:13]}  Rxc7 {[%clk 0:00:03]} 35. Bxc7 {[%clk 0:00:13]}  Nf8 {[%clk 0:00:04]} 36. Rd8 {[%clk 0:00:13]}  Kh7 {[%clk 0:00:04]} 37. Rc8 {[%clk 0:00:13]}  Ne6 {[%clk 0:00:05]} 38. Bb6 {[%clk 0:00:13]}  Bf6 {[%clk 0:00:04]} 39. Kg2 {[%clk 0:00:14]}  Kg7 {[%clk 0:00:04]} 40. Ra8 {[%clk 0:00:14]}  Be5 {[%clk 0:00:04]} 41. Ra5 {[%clk 0:00:14]}  Bf6 {[%clk 0:00:05]} 42. f4 {[%clk 0:00:13]}  Bc3 {[%clk 0:00:05]} 43. Rb5 {[%clk 0:00:13]}  f5 {[%clk 0:00:03]} 44. Be3 {[%clk 0:00:11]}  Kf7 {[%clk 0:00:02]} 45. Rb7+ {[%clk 0:00:11]}  Kg8 {[%clk 0:00:02]} 46. Bb6 {[%clk 0:00:11]}  Bf6 {[%clk 0:00:02]} 47. Ba5 {[%clk 0:00:11]}  Kf8 {[%clk 0:00:02]} 48. Bb4+ {[%clk 0:00:11]}  Kg8 {[%clk 0:00:03]} 49. Bd6 {[%clk 0:00:10]}  Bg7 {[%clk 0:00:02]} 50. Kf3 {[%clk 0:00:10]}  Nd4+ {[%clk 0:00:02]} 51. Ke3 {[%clk 0:00:10]}  Ne6 {[%clk 0:00:03]} 52. Be5 {[%clk 0:00:09]}  Bf8 {[%clk 0:00:03]} 53. Rd7 {[%clk 0:00:08]}  Nc5 {[%clk 0:00:03]} 54. Rc7 {[%clk 0:00:07]}  Ne6 {[%clk 0:00:03]} 55. Rc6 {[%clk 0:00:07]}  Kf7 {[%clk 0:00:03]} 56. Kf3 {[%clk 0:00:07]}  Bc5 {[%clk 0:00:02]} 57. Ra6 {[%clk 0:00:07]}  Be7 {[%clk 0:00:02]} 58. Ke2 {[%clk 0:00:07]}  Nc5 {[%clk 0:00:02]} 59. Rc6 {[%clk 0:00:07]}  Ne4 {[%clk 0:00:03]} 60. Kd3 {[%clk 0:00:06]}  h4 {[%clk 0:00:03]} 61. gxh4 {[%clk 0:00:05]}  Bxh4 {[%clk 0:00:04]} 62. Kc4 {[%clk 0:00:06]}  Bf2 {[%clk 0:00:02]} 63. Kd5 {[%clk 0:00:05]}  Bg1 {[%clk 0:00:02]} 64. Rc7+ {[%clk 0:00:06]}  Kg8 {[%clk 0:00:02]} 65. Ke6 {[%clk 0:00:05]}  Bc5 {[%clk 0:00:02]} 66. Rc8+ {[%clk 0:00:04]}  Bf8 {[%clk 0:00:01]} 67. h4 {[%clk 0:00:05]}  Nc5+ {[%clk 0:00:01]} 68. Kf6 {[%clk 0:00:05]}  Nd7+ {[%clk 0:00:01]} 69. Kxg6 {[%clk 0:00:05]} 1-0


[Site "https://www.chess.com"]

[Event "Titled Tuesday Blitz December 06 Late 2022"]
[White "Ankerst, Mihael"]
[Black "Ezat, Mohamed"]
[WhiteFideId "14602369"]
[BlackFideId "10600906"]
[WhiteElo "2389"]
[BlackElo "2388"]
[Result "0-1"]
[Round "10"]
[TimeControl "180+1"]
[Date "2022.12.07"]
[WhiteClock "0:00:33"]
[BlackClock "0:00:09"]

1. e4 {[%clk 0:02:56]}  e5 {[%clk 0:02:54]} 2. Nf3 {[%clk 0:02:56]}  Nc6 {[%clk 0:02:54]} 3. Nc3 {[%clk 0:02:56]}  Nf6 {[%clk 0:02:54]} 4. d4 {[%clk 0:02:56]}  exd4 {[%clk 0:02:53]} 5. Nxd4 {[%clk 0:02:57]}  Bb4 {[%clk 0:02:53]} 6. Nxc6 {[%clk 0:02:58]}  bxc6 {[%clk 0:02:53]} 7. Bd3 {[%clk 0:02:58]}  O-O {[%clk 0:02:53]} 8. O-O {[%clk 0:02:59]}  d5 {[%clk 0:02:54]} 9. exd5 {[%clk 0:02:59]}  cxd5 {[%clk 0:02:54]} 10. Bg5 {[%clk 0:03:00]}  c6 {[%clk 0:02:53]} 11. Ne2 {[%clk 0:03:00]}  h6 {[%clk 0:02:51]} 12. Bh4 {[%clk 0:02:57]}  Bd6 {[%clk 0:02:46]} 13. Nd4 {[%clk 0:02:56]}  Bd7 {[%clk 0:02:45]} 14. Qf3 {[%clk 0:02:56]}  Rb8 {[%clk 0:02:41]} 15. b3 {[%clk 0:02:55]}  Be5 {[%clk 0:02:39]} 16. c3 {[%clk 0:02:55]}  Qc7 {[%clk 0:02:17]} 17. Nf5 {[%clk 0:02:49]}  Bxh2+ {[%clk 0:02:08]} 18. Kh1 {[%clk 0:02:48]}  Qf4 {[%clk 0:02:06]} 19. Bxf6 {[%clk 0:02:31]}  gxf6 {[%clk 0:01:59]} 20. Qh3 {[%clk 0:01:35]}  Bxf5 {[%clk 0:01:15]} 21. Bxf5 {[%clk 0:01:35]}  d4 {[%clk 0:00:28]} 22. c4 {[%clk 0:01:21]}  Rbe8 {[%clk 0:00:18]} 23. Bd3 {[%clk 0:01:14]}  Re5 {[%clk 0:00:16]} 24. g3 {[%clk 0:01:14]}  Qf3+ {[%clk 0:00:15]} 25. Qg2 {[%clk 0:01:11]}  Qxd3 {[%clk 0:00:15]} 26. Kxh2 {[%clk 0:01:11]}  Rfe8 {[%clk 0:00:12]} 27. Rad1 {[%clk 0:01:09]}  Qc3 {[%clk 0:00:10]} 28. Qxc6 {[%clk 0:01:05]}  d3 {[%clk 0:00:11]} 29. Qxf6 {[%clk 0:01:04]}  Rh5+ {[%clk 0:00:10]} 30. Qh4 {[%clk 0:01:02]}  Rxh4+ {[%clk 0:00:08]} 31. gxh4 {[%clk 0:01:03]}  d2 {[%clk 0:00:09]} 32. Kg2 {[%clk 0:00:52]}  Re1 {[%clk 0:00:07]} 33. f3 {[%clk 0:00:43]}  Rxf1 {[%clk 0:00:07]} 34. Kxf1 {[%clk 0:00:40]}  Qxf3+ {[%clk 0:00:07]} 35. Kg1 {[%clk 0:00:40]}  Qxd1+ {[%clk 0:00:08]} 36. Kg2 {[%clk 0:00:41]}  Qe2+ {[%clk 0:00:08]} 37. Kg1 {[%clk 0:00:33]}  d1=Q# {[%clk 0:00:09]} 0-1


[Site "https://www.chess.com"]

[Event "Titled Tuesday Blitz December 06 Late 2022"]
[White "Averjanov, Alexey"]
[Black "Petrovic, Aleksa"]
[WhiteFideId "14109867"]
[BlackFideId "967629"]
[WhiteElo "2650"]
[BlackElo "2230"]
[Result "1-0"]
[Round "10"]
[TimeControl "180+1"]
[Date "2022.12.06"]
[WhiteClock "0:00:20"]
[BlackClock "0:00:03"]

1. d4 {[%clk 0:03:00]}  e6 {[%clk 0:02:59]} 2. c4 {[%clk 0:03:00]}  Nf6 {[%clk 0:02:59]} 3. Nf3 {[%clk 0:03:00]}  b6 {[%clk 0:02:59]} 4. g3 {[%clk 0:03:00]}  Ba6 {[%clk 0:02:59]} 5. Nbd2 {[%clk 0:03:00]}  Bb4 {[%clk 0:02:57]} 6. Qc2 {[%clk 0:03:00]}  c5 {[%clk 0:02:57]} 7. Bg2 {[%clk 0:03:00]}  Bb7 {[%clk 0:02:56]} 8. O-O {[%clk 0:02:59]}  cxd4 {[%clk 0:02:53]} 9. Nxd4 {[%clk 0:02:59]}  Bxg2 {[%clk 0:02:53]} 10. Kxg2 {[%clk 0:03:00]}  O-O {[%clk 0:02:50]} 11. b3 {[%clk 0:03:00]}  a6 {[%clk 0:02:47]} 12. Bb2 {[%clk 0:03:00]}  Qc7 {[%clk 0:02:44]} 13. Rfd1 {[%clk 0:02:58]}  d6 {[%clk 0:02:42]} 14. Rac1 {[%clk 0:02:58]}  Bxd2 {[%clk 0:02:21]} 15. Rxd2 {[%clk 0:02:57]}  Nbd7 {[%clk 0:02:17]} 16. Rcd1 {[%clk 0:02:55]}  Rfc8 {[%clk 0:02:11]} 17. Qb1 {[%clk 0:02:53]}  b5 {[%clk 0:02:04]} 18. cxb5 {[%clk 0:02:50]}  axb5 {[%clk 0:02:05]} 19. f3 {[%clk 0:02:41]}  Nd5 {[%clk 0:02:00]} 20. Kf2 {[%clk 0:02:37]}  Qb6 {[%clk 0:01:54]} 21. e4 {[%clk 0:02:24]}  Nc3 {[%clk 0:01:51]} 22. Bxc3 {[%clk 0:02:24]}  Rxc3 {[%clk 0:01:52]} 23. Kg2 {[%clk 0:02:22]}  Ne5 {[%clk 0:01:46]} 24. f4 {[%clk 0:02:06]}  Ng4 {[%clk 0:01:43]} 25. Rc1 {[%clk 0:02:04]}  b4 {[%clk 0:01:25]} 26. a4 {[%clk 0:01:43]}  Rac8 {[%clk 0:01:16]} 27. Rxc3 {[%clk 0:01:21]}  bxc3 {[%clk 0:01:17]} 28. Rd3 {[%clk 0:01:21]}  e5 {[%clk 0:00:38]} 29. h3 {[%clk 0:01:06]}  Nf6 {[%clk 0:00:37]} 30. fxe5 {[%clk 0:00:54]}  dxe5 {[%clk 0:00:38]} 31. Nf5 {[%clk 0:00:52]}  Kh8 {[%clk 0:00:11]} 32. Rd6 {[%clk 0:00:38]}  Qc5 {[%clk 0:00:09]} 33. Qd3 {[%clk 0:00:28]}  c2 {[%clk 0:00:05]} 34. Rd8+ {[%clk 0:00:27]}  Ne8 {[%clk 0:00:05]} 35. Qd7 {[%clk 0:00:25]}  Rxd8 {[%clk 0:00:04]} 36. Qxd8 {[%clk 0:00:24]}  h6 {[%clk 0:00:03]} 37. Qxe8+ {[%clk 0:00:23]}  Kh7 {[%clk 0:00:04]} 38. Ne7 {[%clk 0:00:21]}  h5 {[%clk 0:00:03]} 39. Qg8+ {[%clk 0:00:21]}  Kh6 {[%clk 0:00:02]} 40. Qh8+ {[%clk 0:00:20]}  Kg5 {[%clk 0:00:03]} 41. Qxg7# {[%clk 0:00:20]} 1-0


[Site "https://www.chess.com"]

[Event "Titled Tuesday Blitz December 06 Late 2022"]
[White "Baskakov, Egor"]
[Black "Goncalves, Davi Sulzbacher"]
[WhiteFideId "24197866"]
[BlackFideId "2154510"]
[WhiteElo "2212"]
[BlackElo "2182"]
[Result "1-0"]
[Round "10"]
[TimeControl "180+1"]
[Date "2022.12.07"]
[WhiteClock "0:01:56"]
[BlackClock "0:00:01"]

1. e4 {[%clk 0:03:00]}  c5 {[%clk 0:02:57]} 2. Nf3 {[%clk 0:03:00]}  d6 {[%clk 0:02:57]} 3. d4 {[%clk 0:03:00]}  cxd4 {[%clk 0:02:58]} 4. Nxd4 {[%clk 0:03:01]}  Nf6 {[%clk 0:02:58]} 5. Nc3 {[%clk 0:03:01]}  g6 {[%clk 0:02:59]} 6. g3 {[%clk 0:03:01]}  Bg7 {[%clk 0:02:59]} 7. Bg2 {[%clk 0:03:01]}  O-O {[%clk 0:03:00]} 8. h3 {[%clk 0:03:01]}  a6 {[%clk 0:03:00]} 9. a4 {[%clk 0:03:01]}  Nc6 {[%clk 0:02:57]} 10. Nde2 {[%clk 0:03:01]}  Be6 {[%clk 0:02:55]} 11. Nd5 {[%clk 0:03:01]}  Bxd5 {[%clk 0:02:54]} 12. exd5 {[%clk 0:03:02]}  Ne5 {[%clk 0:02:51]} 13. O-O {[%clk 0:03:01]}  Qc7 {[%clk 0:02:47]} 14. b3 {[%clk 0:03:00]}  Rfc8 {[%clk 0:02:41]} 15. c4 {[%clk 0:02:55]}  b5 {[%clk 0:02:38]} 16. axb5 {[%clk 0:02:55]}  axb5 {[%clk 0:02:38]} 17. Rxa8 {[%clk 0:02:56]}  Rxa8 {[%clk 0:02:38]} 18. cxb5 {[%clk 0:02:57]}  Ra2 {[%clk 0:02:16]} 19. Be3 {[%clk 0:02:51]}  Nfd7 {[%clk 0:02:00]} 20. Nd4 {[%clk 0:02:49]}  Nb6 {[%clk 0:01:55]} 21. Nc6 {[%clk 0:02:48]}  Bf6 {[%clk 0:01:23]} 22. Qb1 {[%clk 0:02:43]}  Re2 {[%clk 0:01:15]} 23. Rc1 {[%clk 0:02:41]}  Qb7 {[%clk 0:01:08]} 24. Bd4 {[%clk 0:02:18]}  Ned7 {[%clk 0:01:06]} 25. Bxf6 {[%clk 0:02:13]}  Nxf6 {[%clk 0:01:07]} 26. Qd3 {[%clk 0:02:12]}  Rb2 {[%clk 0:01:02]} 27. Re1 {[%clk 0:02:12]}  Nc8 {[%clk 0:00:51]} 28. Qc3 {[%clk 0:02:08]}  Ra2 {[%clk 0:00:46]} 29. Nxe7+ {[%clk 0:02:05]}  Nxe7 {[%clk 0:00:42]} 30. Qxf6 {[%clk 0:02:06]}  Ra7 {[%clk 0:00:37]} 31. b6 {[%clk 0:02:06]}  Qxb6 {[%clk 0:00:36]} 32. Rxe7 {[%clk 0:02:06]}  Rxe7 {[%clk 0:00:36]} 33. Qxe7 {[%clk 0:02:06]}  Kg7 {[%clk 0:00:23]} 34. Bf1 {[%clk 0:02:03]}  h5 {[%clk 0:00:23]} 35. h4 {[%clk 0:02:03]}  Qc5 {[%clk 0:00:20]} 36. Bc4 {[%clk 0:02:00]}  Qb4 {[%clk 0:00:20]} 37. Kg2 {[%clk 0:02:00]}  Qa3 {[%clk 0:00:18]} 38. Qe3 {[%clk 0:02:01]}  Qb4 {[%clk 0:00:18]} 39. Qd4+ {[%clk 0:02:01]}  Kg8 {[%clk 0:00:17]} 40. Qf4 {[%clk 0:02:01]}  Kg7 {[%clk 0:00:17]} 41. g4 {[%clk 0:02:01]}  hxg4 {[%clk 0:00:16]} 42. Qxg4 {[%clk 0:02:02]}  Kf8 {[%clk 0:00:08]} 43. h5 {[%clk 0:02:02]}  gxh5 {[%clk 0:00:08]} 44. Qxh5 {[%clk 0:02:03]}  Ke7 {[%clk 0:00:07]} 45. Qg5+ {[%clk 0:02:03]}  Kf8 {[%clk 0:00:07]} 46. Qf6 {[%clk 0:02:03]}  Kg8 {[%clk 0:00:05]} 47. Qf3 {[%clk 0:01:56]}  Kg7 {[%clk 0:00:04]} 48. Kg3 {[%clk 0:01:56]}  Qd2 {[%clk 0:00:02]} 49. Qg4+ {[%clk 0:01:56]}  Kf8 {[%clk 0:00:01]} 50. Qf4 {[%clk 0:01:56]} 1-0


[Site "https://www.chess.com"]

[Event "Titled Tuesday Blitz December 06 Late 2022"]
[White "Chigaev, Maksim"]
[Black "Bazeev, German"]
[WhiteFideId "4108116"]
[BlackFideId "24119350"]
[WhiteElo "2542"]
[BlackElo "2501"]
[Result "1-0"]
[Round "10"]
[TimeControl "180+1"]
[Date "2022.12.06"]
[WhiteClock "0:01:15"]
[BlackClock "0:00:19"]

1. Nf3 {[%clk 0:03:00]}  d5 {[%clk 0:03:00]} 2. c4 {[%clk 0:03:01]}  c6 {[%clk 0:02:59]} 3. g3 {[%clk 0:03:02]}  Nf6 {[%clk 0:02:59]} 4. Bg2 {[%clk 0:03:02]}  g6 {[%clk 0:03:00]} 5. O-O {[%clk 0:03:02]}  Bg7 {[%clk 0:03:00]} 6. d4 {[%clk 0:03:03]}  dxc4 {[%clk 0:03:00]} 7. Nc3 {[%clk 0:03:01]}  O-O {[%clk 0:03:01]} 8. e4 {[%clk 0:03:01]}  b5 {[%clk 0:03:01]} 9. Qe2 {[%clk 0:03:00]}  b4 {[%clk 0:03:01]} 10. Na4 {[%clk 0:03:00]}  Ba6 {[%clk 0:02:51]} 11. Rd1 {[%clk 0:03:00]}  Bb5 {[%clk 0:02:33]} 12. Nc5 {[%clk 0:02:58]}  Nfd7 {[%clk 0:02:30]} 13. e5 {[%clk 0:02:47]}  e6 {[%clk 0:02:17]} 14. Ne4 {[%clk 0:02:40]}  Nb6 {[%clk 0:01:08]} 15. Bg5 {[%clk 0:02:32]}  Qc7 {[%clk 0:01:08]} 16. Nf6+ {[%clk 0:02:23]}  Kh8 {[%clk 0:01:08]} 17. Qe4 {[%clk 0:02:23]}  N8d7 {[%clk 0:00:40]} 18. Qh4 {[%clk 0:02:23]}  Bxf6 {[%clk 0:00:39]} 19. Bxf6+ {[%clk 0:02:20]}  Nxf6 {[%clk 0:00:35]} 20. exf6 {[%clk 0:02:21]}  Nd7 {[%clk 0:00:31]} 21. a4 {[%clk 0:01:54]}  bxa3 {[%clk 0:00:27]} 22. bxa3 {[%clk 0:01:55]}  Qd8 {[%clk 0:00:24]} 23. a4 {[%clk 0:01:54]}  Ba6 {[%clk 0:00:24]} 24. Ne5 {[%clk 0:01:53]}  Nxe5 {[%clk 0:00:19]} 25. dxe5 {[%clk 0:01:53]}  Qa5 {[%clk 0:00:19]} 26. Qh6 {[%clk 0:01:35]}  Rg8 {[%clk 0:00:19]} 27. Rd4 {[%clk 0:01:15]} 1-0


[Site "https://www.chess.com"]

[Event "Titled Tuesday Blitz December 06 Late 2022"]
[White "Clawitter, Craig"]
[Black "Rian, Kapriaga"]
[WhiteFideId "2023105"]
[BlackFideId "7103263"]
[WhiteElo "2199"]
[BlackElo "2243"]
[Result "0-1"]
[Round "10"]
[TimeControl "180+1"]
[Date "2022.12.07"]
[WhiteClock "0:00:06"]
[BlackClock "0:00:14"]

1. e4 {[%clk 0:02:51]}  c6 {[%clk 0:02:51]} 2. Nf3 {[%clk 0:02:51]}  d5 {[%clk 0:02:49]} 3. e5 {[%clk 0:02:51]}  c5 {[%clk 0:02:43]} 4. d4 {[%clk 0:02:50]}  Bg4 {[%clk 0:02:40]} 5. dxc5 {[%clk 0:02:48]}  e6 {[%clk 0:02:37]} 6. c3 {[%clk 0:02:45]}  Bxf3 {[%clk 0:02:35]} 7. Qxf3 {[%clk 0:02:46]}  Bxc5 {[%clk 0:02:34]} 8. b4 {[%clk 0:02:45]}  Be7 {[%clk 0:02:30]} 9. Qg3 {[%clk 0:02:43]}  g6 {[%clk 0:02:28]} 10. h4 {[%clk 0:02:41]}  h5 {[%clk 0:02:27]} 11. Bd3 {[%clk 0:02:38]}  Nh6 {[%clk 0:02:20]} 12. Bxg6 {[%clk 0:02:31]}  fxg6 {[%clk 0:02:16]} 13. Qxg6+ {[%clk 0:02:31]}  Nf7 {[%clk 0:02:16]} 14. Na3 {[%clk 0:02:04]}  Qd7 {[%clk 0:02:06]} 15. Bf4 {[%clk 0:01:53]}  Nc6 {[%clk 0:02:03]} 16. g3 {[%clk 0:01:29]}  Bf8 {[%clk 0:01:52]} 17. O-O {[%clk 0:01:23]}  O-O-O {[%clk 0:01:45]} 18. Rfe1 {[%clk 0:01:12]}  Bh6 {[%clk 0:01:37]} 19. Bxh6 {[%clk 0:01:03]}  Rxh6 {[%clk 0:01:31]} 20. Qg7 {[%clk 0:01:03]}  Rhh8 {[%clk 0:01:24]} 21. Nb5 {[%clk 0:00:59]}  Nfxe5 {[%clk 0:01:15]} 22. Nxa7+ {[%clk 0:00:45]}  Nxa7 {[%clk 0:00:57]} 23. Qxe5 {[%clk 0:00:43]}  Rde8 {[%clk 0:00:53]} 24. Red1 {[%clk 0:00:29]}  Qc7 {[%clk 0:00:52]} 25. Qe3 {[%clk 0:00:17]}  Kb8 {[%clk 0:00:49]} 26. Rac1 {[%clk 0:00:15]}  Nc8 {[%clk 0:00:33]} 27. c4 {[%clk 0:00:14]}  Qb6 {[%clk 0:00:32]} 28. Qxb6 {[%clk 0:00:10]}  Nxb6 {[%clk 0:00:31]} 29. cxd5 {[%clk 0:00:10]}  Nxd5 {[%clk 0:00:30]} 30. a3 {[%clk 0:00:09]}  Rc8 {[%clk 0:00:29]} 31. Kg2 {[%clk 0:00:07]}  Rhf8 {[%clk 0:00:27]} 32. Rxc8+ {[%clk 0:00:07]}  Rxc8 {[%clk 0:00:26]} 33. Re1 {[%clk 0:00:07]}  Rc6 {[%clk 0:00:22]} 34. Re5 {[%clk 0:00:07]}  Nf6 {[%clk 0:00:21]} 35. f3 {[%clk 0:00:06]}  Kc8 {[%clk 0:00:20]} 36. Kf2 {[%clk 0:00:06]}  Kd7 {[%clk 0:00:20]} 37. Ke3 {[%clk 0:00:06]}  Rc3+ {[%clk 0:00:20]} 38. Kf4 {[%clk 0:00:05]}  Rxa3 {[%clk 0:00:19]} 39. Kg5 {[%clk 0:00:04]}  Rxf3 {[%clk 0:00:18]} 40. Rb5 {[%clk 0:00:04]}  Nd5 {[%clk 0:00:17]} 41. Rxb7+ {[%clk 0:00:03]}  Kc6 {[%clk 0:00:17]} 42. Rh7 {[%clk 0:00:03]}  Rxg3+ {[%clk 0:00:16]} 43. Kxh5 {[%clk 0:00:02]}  Nf6+ {[%clk 0:00:16]} 44. Kh6 {[%clk 0:00:02]}  Nxh7 {[%clk 0:00:16]} 45. Kxh7 {[%clk 0:00:03]}  Rh3 {[%clk 0:00:15]} 46. b5+ {[%clk 0:00:04]}  Kxb5 {[%clk 0:00:15]} 47. Kg8 {[%clk 0:00:05]}  Rxh4 {[%clk 0:00:15]} 48. Kf7 {[%clk 0:00:06]}  Re4 {[%clk 0:00:14]} 0-1


[Site "https://www.chess.com"]